[Event "Titled Tuesday Blitz July 05 Late 2022"]
[White "Yuan, Qingyu"]
[Black "Svane, Rasmus"]
[WhiteFideId "8609772"]
[BlackFideId "4657101"]
[WhiteElo "2359"]
[BlackElo "2674"]
[Result "1/2-1/2"]
[Round "03"]
[TimeControl "180+1"]
[Date "2022.07.05"]
[WhiteClock "0:00:04"]
[BlackClock "0:00:07"]

1. e4 {[%clk 0:03:00]}  c6 {[%clk 0:02:59]} 2. Nf3 {[%clk 0:03:00]}  d5 {[%clk 0:03:00]} 3. Nc3 {[%clk 0:03:01]}  dxe4 {[%clk 0:02:59]} 4. Nxe4 {[%clk 0:03:02]}  Nf6 {[%clk 0:03:00]} 5. Qe2 {[%clk 0:03:03]}  Nxe4 {[%clk 0:03:00]} 6. Qxe4 {[%clk 0:03:04]}  Qa5 {[%clk 0:03:01]} 7. b4 {[%clk 0:03:03]}  Qd5 {[%clk 0:03:01]} 8. Qe3 {[%clk 0:03:02]}  Bf5 {[%clk 0:03:02]} 9. c4 {[%clk 0:02:55]}  Qe4 {[%clk 0:03:02]} 10. Be2 {[%clk 0:02:55]}  e6 {[%clk 0:03:00]} 11. Qb3 {[%clk 0:02:43]}  Qc2 {[%clk 0:02:44]} 12. Bb2 {[%clk 0:02:20]}  Qxb3 {[%clk 0:02:41]} 13. axb3 {[%clk 0:02:19]}  Bxb4 {[%clk 0:02:42]} 14. Bxg7 {[%clk 0:02:19]}  Rg8 {[%clk 0:02:42]} 15. Be5 {[%clk 0:02:17]}  Rxg2 {[%clk 0:02:17]} 16. Bg3 {[%clk 0:01:52]}  Nd7 {[%clk 0:01:53]} 17. Nh4 {[%clk 0:01:37]}  Rxg3 {[%clk 0:01:43]} 18. hxg3 {[%clk 0:01:38]}  Bc2 {[%clk 0:01:37]} 19. Bd1 {[%clk 0:01:33]}  Bd3 {[%clk 0:01:28]} 20. Be2 {[%clk 0:01:25]}  Bc2 {[%clk 0:01:28]} 21. Bd1 {[%clk 0:01:25]}  Be4 {[%clk 0:01:01]} 22. f3 {[%clk 0:01:23]}  Bd3 {[%clk 0:01:02]} 23. Be2 {[%clk 0:01:24]}  Bc2 {[%clk 0:00:58]} 24. Bd1 {[%clk 0:01:24]}  Bxd1 {[%clk 0:00:49]} 25. Kxd1 {[%clk 0:01:12]}  Nc5 {[%clk 0:00:46]} 26. Kc2 {[%clk 0:01:10]}  O-O-O {[%clk 0:00:40]} 27. Rad1 {[%clk 0:01:03]}  Rd3 {[%clk 0:00:36]} 28. Rhe1 {[%clk 0:00:54]}  Rxb3 {[%clk 0:00:25]} 29. Rb1 {[%clk 0:00:46]}  Rxb1 {[%clk 0:00:22]} 30. Rxb1 {[%clk 0:00:47]}  a5 {[%clk 0:00:22]} 31. d4 {[%clk 0:00:41]}  Nd7 {[%clk 0:00:22]} 32. f4 {[%clk 0:00:34]}  Nf6 {[%clk 0:00:21]} 33. Kd3 {[%clk 0:00:32]}  Nh5 {[%clk 0:00:20]} 34. Rg1 {[%clk 0:00:21]}  b5 {[%clk 0:00:20]} 35. Nf3 {[%clk 0:00:20]}  f6 {[%clk 0:00:17]} 36. cxb5 {[%clk 0:00:18]}  cxb5 {[%clk 0:00:18]} 37. Ke3 {[%clk 0:00:18]}  Bd6 {[%clk 0:00:18]} 38. Nd2 {[%clk 0:00:16]}  a4 {[%clk 0:00:15]} 39. Ne4 {[%clk 0:00:17]}  Be7 {[%clk 0:00:11]} 40. Rh1 {[%clk 0:00:16]}  Ng7 {[%clk 0:00:11]} 41. Rxh7 {[%clk 0:00:15]}  Nf5+ {[%clk 0:00:12]} 42. Kd3 {[%clk 0:00:15]}  a3 {[%clk 0:00:12]} 43. g4 {[%clk 0:00:10]}  a2 {[%clk 0:00:11]} 44. Rh1 {[%clk 0:00:10]}  Nd6 {[%clk 0:00:09]} 45. Ra1 {[%clk 0:00:07]}  f5 {[%clk 0:00:06]} 46. gxf5 {[%clk 0:00:06]}  exf5 {[%clk 0:00:06]} 47. Nxd6+ {[%clk 0:00:06]}  Bxd6 {[%clk 0:00:07]} 48. Rxa2 {[%clk 0:00:06]}  Bxf4 {[%clk 0:00:07]} 49. Rf2 {[%clk 0:00:07]}  Bd6 {[%clk 0:00:02]} 50. Rxf5 {[%clk 0:00:07]}  b4 {[%clk 0:00:03]} 51. Kc4 {[%clk 0:00:07]}  Kd7 {[%clk 0:00:03]} 52. Rb5 {[%clk 0:00:07]}  Kc6 {[%clk 0:00:04]} 53. Ra5 {[%clk 0:00:08]}  Kb6 {[%clk 0:00:04]} 54. Rh5 {[%clk 0:00:08]}  Kc6 {[%clk 0:00:04]} 55. Rh6 {[%clk 0:00:08]}  Kd7 {[%clk 0:00:05]} 56. Kd5 {[%clk 0:00:08]}  Be7 {[%clk 0:00:05]} 57. Rh3 {[%clk 0:00:07]}  Bd6 {[%clk 0:00:04]} 58. Rf3 {[%clk 0:00:06]}  Be7 {[%clk 0:00:04]} 59. Kc4 {[%clk 0:00:07]}  Kc6 {[%clk 0:00:04]} 60. Rf5 {[%clk 0:00:07]}  Bd6 {[%clk 0:00:04]} 61. d5+ {[%clk 0:00:06]}  Kb6 {[%clk 0:00:04]} 62. Rf6 {[%clk 0:00:07]}  Kc7 {[%clk 0:00:05]} 63. Rg6 {[%clk 0:00:07]}  Kd7 {[%clk 0:00:05]} 64. Rh6 {[%clk 0:00:07]}  Kc7 {[%clk 0:00:05]} 65. Rh3 {[%clk 0:00:07]}  Kd7 {[%clk 0:00:05]} 66. Kb5 {[%clk 0:00:07]}  Be7 {[%clk 0:00:05]} 67. Rh7 {[%clk 0:00:04]}  Kd6 {[%clk 0:00:05]} 68. Rh5 {[%clk 0:00:02]}  b3 {[%clk 0:00:05]} 69. Kc4 {[%clk 0:00:03]}  b2 {[%clk 0:00:06]} 70. Rh1 {[%clk 0:00:03]}  Bf6 {[%clk 0:00:06]} 71. Rf1 {[%clk 0:00:04]}  Be5 {[%clk 0:00:07]} 72. Rb1 {[%clk 0:00:04]}  Bf6 {[%clk 0:00:07]} 73. Rxb2 {[%clk 0:00:04]}  Bxb2 {[%clk 0:00:07]} 74. Kb3 {[%clk 0:00:04]}  Kxd5 {[%clk 0:00:07]} 1/2-1/2


[Site "https://www.chess.com"]

[Event "Titled Tuesday Blitz July 05 Late 2022"]
[White "Bjelobrk, Igor"]
[Black "Tari, Aryan"]
[WhiteFideId "4300726"]
[BlackFideId "1510045"]
[WhiteElo "2335"]
[BlackElo "2612"]
[Result "0-1"]
[Round "04"]
[TimeControl "180+1"]
[Date "2022.07.05"]
[WhiteClock "0:00:04"]
[BlackClock "0:00:10"]

1. Nf3 {[%clk 0:03:00]}  c5 {[%clk 0:02:58]} 2. c4 {[%clk 0:03:00]}  Nc6 {[%clk 0:02:58]} 3. d4 {[%clk 0:02:59]}  cxd4 {[%clk 0:02:59]} 4. Nxd4 {[%clk 0:03:00]}  Qb6 {[%clk 0:03:00]} 5. Nb3 {[%clk 0:02:41]}  e6 {[%clk 0:03:00]} 6. e3 {[%clk 0:02:33]}  Nf6 {[%clk 0:02:57]} 7. Nc3 {[%clk 0:02:27]}  Bb4 {[%clk 0:02:55]} 8. Bd2 {[%clk 0:02:27]}  d5 {[%clk 0:02:54]} 9. cxd5 {[%clk 0:02:26]}  exd5 {[%clk 0:02:54]} 10. Be2 {[%clk 0:02:21]}  O-O {[%clk 0:02:54]} 11. O-O {[%clk 0:02:21]}  Rd8 {[%clk 0:02:41]} 12. Nb5 {[%clk 0:02:18]}  Bxd2 {[%clk 0:02:27]} 13. Qxd2 {[%clk 0:02:17]}  Ne4 {[%clk 0:02:27]} 14. Qd1 {[%clk 0:02:16]}  Bf5 {[%clk 0:02:19]} 15. N5d4 {[%clk 0:02:08]}  Bg6 {[%clk 0:02:19]} 16. Rc1 {[%clk 0:01:59]}  a5 {[%clk 0:02:18]} 17. a4 {[%clk 0:01:34]}  Nxd4 {[%clk 0:01:57]} 18. Nxd4 {[%clk 0:01:35]}  Qxb2 {[%clk 0:01:55]} 19. Rb1 {[%clk 0:01:26]}  Qa2 {[%clk 0:01:48]} 20. Ra1 {[%clk 0:01:17]}  Qd2 {[%clk 0:01:40]} 21. Qxd2 {[%clk 0:01:12]}  Nxd2 {[%clk 0:01:41]} 22. Rfd1 {[%clk 0:01:13]}  Ne4 {[%clk 0:01:41]} 23. Rdb1 {[%clk 0:01:07]}  Nd6 {[%clk 0:01:33]} 24. Rb6 {[%clk 0:01:05]}  Rac8 {[%clk 0:01:33]} 25. f3 {[%clk 0:00:56]}  Rd7 {[%clk 0:01:16]} 26. Kf2 {[%clk 0:00:53]}  Nc4 {[%clk 0:01:15]} 27. Rb5 {[%clk 0:00:49]}  Re7 {[%clk 0:01:15]} 28. Bxc4 {[%clk 0:00:34]}  dxc4 {[%clk 0:01:12]} 29. Rxa5 {[%clk 0:00:34]}  Bd3 {[%clk 0:01:06]} 30. Rb5 {[%clk 0:00:24]}  c3 {[%clk 0:00:57]} 31. Rb3 {[%clk 0:00:23]}  Rec7 {[%clk 0:00:48]} 32. Rc1 {[%clk 0:00:22]}  Ba6 {[%clk 0:00:41]} 33. Rc2 {[%clk 0:00:19]}  Rc4 {[%clk 0:00:41]} 34. Nb5 {[%clk 0:00:18]}  Rxa4 {[%clk 0:00:39]} 35. Rbxc3 {[%clk 0:00:17]}  Rxc3 {[%clk 0:00:36]} 36. Nxc3 {[%clk 0:00:18]}  Rc4 {[%clk 0:00:36]} 37. Ke1 {[%clk 0:00:18]}  h5 {[%clk 0:00:30]} 38. Kd2 {[%clk 0:00:18]}  Rc6 {[%clk 0:00:26]} 39. e4 {[%clk 0:00:18]}  Rd6+ {[%clk 0:00:24]} 40. Nd5 {[%clk 0:00:18]}  Bb5 {[%clk 0:00:22]} 41. Rc8+ {[%clk 0:00:18]}  Kh7 {[%clk 0:00:22]} 42. Ke3 {[%clk 0:00:18]}  Bd7 {[%clk 0:00:17]} 43. Rc7 {[%clk 0:00:17]}  b5 {[%clk 0:00:17]} 44. Rb7 {[%clk 0:00:16]}  f6 {[%clk 0:00:18]} 45. h4 {[%clk 0:00:15]}  Kh6 {[%clk 0:00:13]} 46. Kd4 {[%clk 0:00:15]}  Be6 {[%clk 0:00:10]} 47. Kc5 {[%clk 0:00:14]}  Ra6 {[%clk 0:00:11]} 48. Rxb5 {[%clk 0:00:13]}  Ra2 {[%clk 0:00:11]} 49. Nf4 {[%clk 0:00:13]}  Bf7 {[%clk 0:00:11]} 50. Kd4 {[%clk 0:00:13]}  g5 {[%clk 0:00:10]} 51. hxg5+ {[%clk 0:00:13]}  fxg5 {[%clk 0:00:11]} 52. Rb6+ {[%clk 0:00:14]}  Kg7 {[%clk 0:00:12]} 53. Ne6+ {[%clk 0:00:14]}  Bxe6 {[%clk 0:00:12]} 54. Rxe6 {[%clk 0:00:15]}  Rxg2 {[%clk 0:00:12]} 55. Ke3 {[%clk 0:00:15]}  h4 {[%clk 0:00:13]} 56. f4 {[%clk 0:00:07]}  g4 {[%clk 0:00:09]} 57. Rd6 {[%clk 0:00:03]}  h3 {[%clk 0:00:09]} 58. Rd1 {[%clk 0:00:03]}  h2 {[%clk 0:00:09]} 59. Rh1 {[%clk 0:00:03]}  g3 {[%clk 0:00:10]} 60. Kf3 {[%clk 0:00:04]}  Rg1 {[%clk 0:00:10]} 0-1


[Site "https://www.chess.com"]

[Event "Titled Tuesday Blitz July 05 Late 2022"]
[White "Cardoso Cardoso, Jose Gabriel"]
[Black "Al-Tarboush, Ward"]
[WhiteFideId "4430492"]
[BlackFideId "7601450"]
[WhiteElo "2485"]
[BlackElo "2231"]
[Result "1-0"]
[Round "04"]
[TimeControl "180+1"]
[Date "2022.07.05"]
[WhiteClock "0:00:10"]
[BlackClock "0:00:07"]

1. Nf3 {[%clk 0:03:00]}  d5 {[%clk 0:02:58]} 2. e3 {[%clk 0:02:56]}  Nc6 {[%clk 0:02:54]} 3. d4 {[%clk 0:02:29]}  Bg4 {[%clk 0:02:53]} 4. c4 {[%clk 0:02:23]}  e6 {[%clk 0:02:52]} 5. Nc3 {[%clk 0:02:21]}  Nf6 {[%clk 0:02:51]} 6. h3 {[%clk 0:02:13]}  Bh5 {[%clk 0:02:49]} 7. Qb3 {[%clk 0:02:10]}  Bb4 {[%clk 0:02:46]} 8. Be2 {[%clk 0:02:07]}  O-O {[%clk 0:02:44]} 9. O-O {[%clk 0:02:06]}  Bxc3 {[%clk 0:02:28]} 10. bxc3 {[%clk 0:02:05]}  Na5 {[%clk 0:02:27]} 11. Qa4 {[%clk 0:02:03]}  Nxc4 {[%clk 0:02:26]} 12. Bxc4 {[%clk 0:02:03]}  dxc4 {[%clk 0:02:23]} 13. Qxc4 {[%clk 0:02:00]}  Bxf3 {[%clk 0:02:23]} 14. gxf3 {[%clk 0:02:01]}  Nh5 {[%clk 0:02:16]} 15. Rd1 {[%clk 0:01:53]}  c6 {[%clk 0:02:14]} 16. Qf1 {[%clk 0:01:44]}  Qh4 {[%clk 0:02:11]} 17. Qg2 {[%clk 0:01:43]}  f5 {[%clk 0:02:07]} 18. Ba3 {[%clk 0:01:24]}  Rf6 {[%clk 0:02:06]} 19. Be7 {[%clk 0:01:24]}  Raf8 {[%clk 0:01:55]} 20. Kf1 {[%clk 0:01:20]}  R8f7 {[%clk 0:01:54]} 21. Bd8 {[%clk 0:01:13]}  Rf8 {[%clk 0:01:51]} 22. Bxf6 {[%clk 0:01:12]}  Rxf6 {[%clk 0:01:52]} 23. Ke2 {[%clk 0:01:10]}  Rg6 {[%clk 0:01:35]} 24. Qh2 {[%clk 0:01:07]}  h6 {[%clk 0:01:30]} 25. Rg1 {[%clk 0:01:04]}  Rf6 {[%clk 0:01:29]} 26. Rg2 {[%clk 0:00:58]}  Rf7 {[%clk 0:01:17]} 27. Rag1 {[%clk 0:00:55]}  Qe7 {[%clk 0:01:16]} 28. Qb8+ {[%clk 0:00:42]}  Kh7 {[%clk 0:01:16]} 29. Rg6 {[%clk 0:00:41]}  Nf6 {[%clk 0:00:43]} 30. h4 {[%clk 0:00:27]}  Qa3 {[%clk 0:00:35]} 31. Qg3 {[%clk 0:00:20]}  Qxa2+ {[%clk 0:00:31]} 32. Kf1 {[%clk 0:00:17]}  Qa1+ {[%clk 0:00:22]} 33. Kg2 {[%clk 0:00:17]}  Qxc3 {[%clk 0:00:22]} 34. Kh1 {[%clk 0:00:17]}  Nh5 {[%clk 0:00:20]} 35. Rxh6+ {[%clk 0:00:15]}  Kg8 {[%clk 0:00:13]} 36. Rxh5 {[%clk 0:00:14]}  Qb4 {[%clk 0:00:11]} 37. Qg6 {[%clk 0:00:11]}  Kf8 {[%clk 0:00:07]} 38. Qxe6 {[%clk 0:00:10]} 1-0


[Site "https://www.chess.com"]

[Event "Titled Tuesday Blitz July 05 Late 2022"]
[White "Chernobay, Artem"]
[Black "Roman, Rodrigo"]
[WhiteFideId "4167406"]
[BlackFideId "3701220"]
[WhiteElo "2473"]
[BlackElo "2001"]
[Result "1-0"]
[Round "04"]
[TimeControl "180+1"]
[Date "2022.07.06"]
[WhiteClock "0:00:16"]
[BlackClock "0:00:55"]

1. d4 {[%clk 0:03:00]}  Nf6 {[%clk 0:03:00]} 2. c4 {[%clk 0:03:01]}  e6 {[%clk 0:03:00]} 3. Nf3 {[%clk 0:03:00]}  d5 {[%clk 0:03:00]} 4. g3 {[%clk 0:03:00]}  b6 {[%clk 0:02:59]} 5. Bg2 {[%clk 0:03:00]}  Bb7 {[%clk 0:03:00]} 6. cxd5 {[%clk 0:02:57]}  exd5 {[%clk 0:03:00]} 7. O-O {[%clk 0:02:56]}  Be7 {[%clk 0:02:59]} 8. Nc3 {[%clk 0:02:53]}  a6 {[%clk 0:02:59]} 9. b3 {[%clk 0:02:30]}  O-O {[%clk 0:02:59]} 10. Bb2 {[%clk 0:02:30]}  Nbd7 {[%clk 0:02:59]} 11. Rc1 {[%clk 0:02:21]}  Re8 {[%clk 0:02:56]} 12. Ne5 {[%clk 0:02:20]}  Nxe5 {[%clk 0:02:26]} 13. dxe5 {[%clk 0:02:19]}  Ne4 {[%clk 0:02:26]} 14. Nxe4 {[%clk 0:02:12]}  dxe4 {[%clk 0:02:26]} 15. Qxd8 {[%clk 0:02:11]}  Bxd8 {[%clk 0:02:27]} 16. Rfd1 {[%clk 0:01:57]}  c5 {[%clk 0:02:19]} 17. Rd7 {[%clk 0:01:53]}  Bc6 {[%clk 0:02:18]} 18. Rd6 {[%clk 0:01:54]}  Bb7 {[%clk 0:02:18]} 19. Rcd1 {[%clk 0:01:34]}  Bc7 {[%clk 0:02:17]} 20. Rd7 {[%clk 0:01:28]}  Rac8 {[%clk 0:02:16]} 21. e6 {[%clk 0:01:06]}  f6 {[%clk 0:02:02]} 22. Bh3 {[%clk 0:00:58]}  Bc6 {[%clk 0:01:58]} 23. Kf1 {[%clk 0:00:36]}  Rf8 {[%clk 0:01:33]} 24. Re7 {[%clk 0:00:27]}  Rfe8 {[%clk 0:01:30]} 25. Rf7 {[%clk 0:00:27]}  b5 {[%clk 0:01:17]} 26. Rdd7 {[%clk 0:00:23]}  Bxd7 {[%clk 0:01:03]} 27. exd7 {[%clk 0:00:24]}  Kxf7 {[%clk 0:01:01]} 28. dxc8=Q {[%clk 0:00:24]}  Rxc8 {[%clk 0:01:02]} 29. Bxc8 {[%clk 0:00:25]}  a5 {[%clk 0:01:02]} 30. Bd7 {[%clk 0:00:22]}  b4 {[%clk 0:01:01]} 31. Bf5 {[%clk 0:00:22]}  g6 {[%clk 0:00:59]} 32. Bxe4 {[%clk 0:00:22]}  f5 {[%clk 0:01:00]} 33. Bd5+ {[%clk 0:00:22]}  Ke7 {[%clk 0:01:00]} 34. f4 {[%clk 0:00:20]}  Bb6 {[%clk 0:00:59]} 35. Bc4 {[%clk 0:00:19]}  Bc7 {[%clk 0:00:58]} 36. Kf2 {[%clk 0:00:20]}  h5 {[%clk 0:00:57]} 37. Kf3 {[%clk 0:00:20]}  Bd6 {[%clk 0:00:57]} 38. e4 {[%clk 0:00:20]}  Bc7 {[%clk 0:00:57]} 39. exf5 {[%clk 0:00:19]}  gxf5 {[%clk 0:00:58]} 40. h3 {[%clk 0:00:18]}  Bd6 {[%clk 0:00:58]} 41. g4 {[%clk 0:00:18]}  hxg4+ {[%clk 0:00:58]} 42. hxg4 {[%clk 0:00:19]}  fxg4+ {[%clk 0:00:59]} 43. Kxg4 {[%clk 0:00:20]}  a4 {[%clk 0:00:58]} 44. bxa4 {[%clk 0:00:19]}  Bc7 {[%clk 0:00:59]} 45. f5 {[%clk 0:00:18]}  Kf8 {[%clk 0:00:58]} 46. f6 {[%clk 0:00:17]}  Bd8 {[%clk 0:00:59]} 47. Kf5 {[%clk 0:00:17]}  Bc7 {[%clk 0:00:59]} 48. Ke6 {[%clk 0:00:17]}  Bg3 {[%clk 0:00:59]} 49. Bc1 {[%clk 0:00:16]}  Bf4 {[%clk 0:00:55]} 50. Bxf4 {[%clk 0:00:16]} 1-0


[Site "https://www.chess.com"]

[Event "Titled Tuesday Blitz July 05 Late 2022"]
[White "Dardha, Daniel"]
[Black "Zlatin, Alexander"]
[WhiteFideId "240990"]
[BlackFideId "2810549"]
[WhiteElo "2482"]
[BlackElo "2228"]
[Result "1-0"]
[Round "04"]
[TimeControl "180+1"]
[Date "2022.07.05"]
[WhiteClock "0:00:17"]
[BlackClock "0:00:01"]

1. d4 {[%clk 0:03:00]}  Nf6 {[%clk 0:02:59]} 2. c4 {[%clk 0:02:57]}  g6 {[%clk 0:02:58]} 3. h4 {[%clk 0:02:56]}  d5 {[%clk 0:02:57]} 4. cxd5 {[%clk 0:02:56]}  Nxd5 {[%clk 0:02:57]} 5. e4 {[%clk 0:02:56]}  Nb6 {[%clk 0:02:55]} 6. h5 {[%clk 0:02:55]}  Bg7 {[%clk 0:02:15]} 7. Nf3 {[%clk 0:02:51]}  c5 {[%clk 0:02:11]} 8. d5 {[%clk 0:02:33]}  Bg4 {[%clk 0:02:10]} 9. h6 {[%clk 0:02:31]}  Bd4 {[%clk 0:02:04]} 10. Nbd2 {[%clk 0:02:16]}  O-O {[%clk 0:02:04]} 11. Be2 {[%clk 0:02:15]}  Bh8 {[%clk 0:01:50]} 12. O-O {[%clk 0:02:14]}  Na6 {[%clk 0:01:39]} 13. a3 {[%clk 0:01:46]}  e6 {[%clk 0:01:34]} 14. dxe6 {[%clk 0:01:44]}  Bxe6 {[%clk 0:01:33]} 15. Qc2 {[%clk 0:01:44]}  Rc8 {[%clk 0:01:27]} 16. Rd1 {[%clk 0:01:43]}  Qc7 {[%clk 0:01:09]} 17. Nc4 {[%clk 0:01:35]}  Nxc4 {[%clk 0:00:59]} 18. Bxc4 {[%clk 0:01:36]}  Nb4 {[%clk 0:00:51]} 19. Qb3 {[%clk 0:01:06]}  Bxc4 {[%clk 0:00:50]} 20. Qxc4 {[%clk 0:01:07]}  b5 {[%clk 0:00:36]} 21. Qe2 {[%clk 0:00:53]}  Nc6 {[%clk 0:00:31]} 22. Be3 {[%clk 0:00:54]}  c4 {[%clk 0:00:26]} 23. Rd5 {[%clk 0:00:53]}  Ne7 {[%clk 0:00:25]} 24. Rxb5 {[%clk 0:00:52]}  Qc6 {[%clk 0:00:21]} 25. Ra5 {[%clk 0:00:41]}  Qxe4 {[%clk 0:00:18]} 26. Ng5 {[%clk 0:00:40]}  Qb7 {[%clk 0:00:08]} 27. Rb1 {[%clk 0:00:30]}  Nc6 {[%clk 0:00:07]} 28. Rc5 {[%clk 0:00:30]}  Ne5 {[%clk 0:00:06]} 29. Rxc8 {[%clk 0:00:24]}  Rxc8 {[%clk 0:00:07]} 30. Bd4 {[%clk 0:00:23]}  Qd5 {[%clk 0:00:04]} 31. Rd1 {[%clk 0:00:22]}  Rd8 {[%clk 0:00:03]} 32. Rd2 {[%clk 0:00:21]}  Nc6 {[%clk 0:00:02]} 33. Be3 {[%clk 0:00:18]}  Qa5 {[%clk 0:00:02]} 34. Qxc4 {[%clk 0:00:17]}  Rxd2 {[%clk 0:00:01]} 35. Qxf7# {[%clk 0:00:17]} 1-0


[Site "https://www.chess.com"]

[Event "Titled Tuesday Blitz July 05 Late 2022"]
[White "Fedoseev, Vladimir"]
[Black "Holt, Conrad"]
[WhiteFideId "24130737"]
[BlackFideId "2034387"]
[WhiteElo "2726"]
[BlackElo "2586"]
[Result "1-0"]
[Round "04"]
[TimeControl "180+1"]
[Date "2022.07.05"]
[WhiteClock "0:00:08"]
[BlackClock "0:00:01"]

1. e4 {[%clk 0:02:52]}  e6 {[%clk 0:03:00]} 2. d4 {[%clk 0:02:51]}  d5 {[%clk 0:03:00]} 3. e5 {[%clk 0:02:49]}  c5 {[%clk 0:03:00]} 4. c3 {[%clk 0:02:49]}  Nc6 {[%clk 0:02:58]} 5. Nf3 {[%clk 0:02:49]}  Bd7 {[%clk 0:02:58]} 6. Be2 {[%clk 0:02:49]}  Nge7 {[%clk 0:02:52]} 7. O-O {[%clk 0:02:48]}  Nf5 {[%clk 0:02:52]} 8. dxc5 {[%clk 0:02:46]}  Bxc5 {[%clk 0:02:51]} 9. Bd3 {[%clk 0:02:46]}  Nh4 {[%clk 0:02:48]} 10. Bf4 {[%clk 0:02:32]}  Nxf3+ {[%clk 0:02:41]} 11. Qxf3 {[%clk 0:02:28]}  g5 {[%clk 0:02:42]} 12. Bg3 {[%clk 0:02:28]}  h5 {[%clk 0:02:41]} 13. h3 {[%clk 0:02:25]}  g4 {[%clk 0:02:38]} 14. hxg4 {[%clk 0:02:24]}  Qg5 {[%clk 0:02:38]} 15. Qf4 {[%clk 0:01:58]}  Qxg4 {[%clk 0:02:37]} 16. Qxg4 {[%clk 0:01:55]}  hxg4 {[%clk 0:02:37]} 17. Re1 {[%clk 0:01:54]}  O-O-O {[%clk 0:02:31]} 18. Nd2 {[%clk 0:01:53]}  Rh5 {[%clk 0:02:31]} 19. b4 {[%clk 0:01:43]}  Rdh8 {[%clk 0:02:30]} 20. Kf1 {[%clk 0:01:42]}  Bf8 {[%clk 0:02:23]} 21. b5 {[%clk 0:01:36]}  Nxe5 {[%clk 0:02:13]} 22. Bxe5 {[%clk 0:01:28]}  Rxe5 {[%clk 0:02:11]} 23. Rxe5 {[%clk 0:01:29]}  Rh1+ {[%clk 0:02:11]} 24. Ke2 {[%clk 0:01:29]}  Rxa1 {[%clk 0:02:12]} 25. Rg5 {[%clk 0:01:29]}  Bh6 {[%clk 0:02:04]} 26. Rh5 {[%clk 0:01:16]}  Bg7 {[%clk 0:02:01]} 27. c4 {[%clk 0:00:37]}  Rxa2 {[%clk 0:01:53]} 28. cxd5 {[%clk 0:00:37]}  exd5 {[%clk 0:01:53]} 29. Rxd5 {[%clk 0:00:30]}  Bh6 {[%clk 0:01:45]} 30. Bc4 {[%clk 0:00:25]}  Rc2 {[%clk 0:01:43]} 31. Kd1 {[%clk 0:00:21]}  Rc3 {[%clk 0:01:35]} 32. Ne4 {[%clk 0:00:17]}  Rc1+ {[%clk 0:01:32]} 33. Ke2 {[%clk 0:00:18]}  Kc7 {[%clk 0:01:25]} 34. Bd3 {[%clk 0:00:17]}  Be6 {[%clk 0:01:13]} 35. Rh5 {[%clk 0:00:17]}  Bf4 {[%clk 0:01:10]} 36. g3 {[%clk 0:00:17]}  Bd6 {[%clk 0:01:06]} 37. Ng5 {[%clk 0:00:18]}  Bd5 {[%clk 0:01:04]} 38. Nxf7 {[%clk 0:00:17]}  Bf3+ {[%clk 0:01:01]} 39. Kd2 {[%clk 0:00:17]}  Rc5 {[%clk 0:00:52]} 40. Rh7 {[%clk 0:00:15]}  Be7 {[%clk 0:00:48]} 41. Nh6 {[%clk 0:00:13]}  Kd8 {[%clk 0:00:43]} 42. Nf7+ {[%clk 0:00:13]}  Kd7 {[%clk 0:00:42]} 43. Ke3 {[%clk 0:00:11]}  Ke6 {[%clk 0:00:34]} 44. Kd4 {[%clk 0:00:08]}  Rd5+ {[%clk 0:00:34]} 45. Kc3 {[%clk 0:00:09]}  Rxd3+ {[%clk 0:00:34]} 46. Kxd3 {[%clk 0:00:08]}  a5 {[%clk 0:00:27]} 47. bxa6 {[%clk 0:00:07]}  bxa6 {[%clk 0:00:28]} 48. Nh6 {[%clk 0:00:05]}  a5 {[%clk 0:00:27]} 49. Nf5 {[%clk 0:00:05]}  Bc5 {[%clk 0:00:12]} 50. Nd4+ {[%clk 0:00:05]}  Kd5 {[%clk 0:00:13]} 51. Nxf3 {[%clk 0:00:05]}  gxf3 {[%clk 0:00:13]} 52. Rh5+ {[%clk 0:00:05]}  Kc6 {[%clk 0:00:12]} 53. Rf5 {[%clk 0:00:03]}  Bxf2 {[%clk 0:00:11]} 54. Rxf3 {[%clk 0:00:04]}  Bc5 {[%clk 0:00:11]} 55. g4 {[%clk 0:00:04]}  Be7 {[%clk 0:00:11]} 56. Rf5 {[%clk 0:00:03]}  a4 {[%clk 0:00:11]} 57. g5 {[%clk 0:00:04]}  Kd7 {[%clk 0:00:09]} 58. g6 {[%clk 0:00:03]}  Ke6 {[%clk 0:00:06]} 59. g7 {[%clk 0:00:04]}  Kxf5 {[%clk 0:00:06]} 60. g8=Q {[%clk 0:00:05]}  a3 {[%clk 0:00:04]} 61. Kc2 {[%clk 0:00:05]}  Ke5 {[%clk 0:00:03]} 62. Kb3 {[%clk 0:00:06]}  Bd6 {[%clk 0:00:04]} 63. Ka2 {[%clk 0:00:06]}  Be7 {[%clk 0:00:05]} 64. Qc4 {[%clk 0:00:07]}  Kf6 {[%clk 0:00:05]} 65. Qd3 {[%clk 0:00:07]}  Kf7 {[%clk 0:00:05]} 66. Qe4 {[%clk 0:00:07]}  Kf6 {[%clk 0:00:05]} 67. Kb3 {[%clk 0:00:08]}  Bd6 {[%clk 0:00:06]} 68. Qc2 {[%clk 0:00:08]}  Ke6 {[%clk 0:00:06]} 69. Kc4 {[%clk 0:00:09]}  Be7 {[%clk 0:00:06]} 70. Qe2+ {[%clk 0:00:09]}  Kd6 {[%clk 0:00:05]} 71. Qd3+ {[%clk 0:00:08]}  Ke6 {[%clk 0:00:06]} 72. Qe3+ {[%clk 0:00:08]}  Kd7 {[%clk 0:00:04]} 73. Kd5 {[%clk 0:00:08]}  Bb4 {[%clk 0:00:01]} 74. Qa7+ {[%clk 0:00:08]}  Ke8 {[%clk 0:00:01]} 75. Ke6 {[%clk 0:00:08]}  Kd8 {[%clk 0:00:01]} 76. Qd7# {[%clk 0:00:08]} 1-0


[Site "https://www.chess.com"]